bitfinex/quotes_ETHUSD_20251004
["timestamp","ask_amount","ask_price","bid_price","bid_amount"]
[1759592165387,0.4481,4454.7,4453.8,2.26]
[1759592165589,0.47416088,4454.6,4453.9,2.537]
[1759592165988,0.4461,4454.5,4453.9,2.537]
[1759592166202,0.002,4454.7,4453.8,4.797]
[1759592166203,0.6336,4454.3,4453.8,4.797]
[1759592166401,0.4741634,4454.2,4453.8,4.797]
[1759592166605,0.112,4453.9,4453.8,4.797]
[1759592166806,0.5581,4453.9,4453.8,4.797]
[1759592167302,0.5581,4453.9,4453.8,2.26]
[1759592167819,0.112,4453.9,4453.8,2.26]
[1759592168223,0.5581,4453.9,4453.8,2.26]
[1759592168822,3.43692328,4453.9,4453.8,2.26]
[1759592169015,1.21976529,4453.9,4453.8,2.26]
[1759592169245,5.86498857,4453.9,4453.8,2.26]
[1759592169435,5.83692328,4453.9,4453.8,2.26]
[1759592171059,3.5917,4453.9,4453.8,2.26]
[1759592171353,3.61976529,4453.9,4453.8,2.26]
[1759592171962,5.86498857,4453.9,4453.8,2.26]
[1759592172157,5.83692328,4453.9,4453.8,2.26]
[1759592174468,11.03415686,4453.9,4453.8,2.26]
[1759592174754,11.50818851,4453.9,4453.8,2.26]
[1759592175162,12.00818851,4453.9,4453.8,2.26]
[1759592175855,9.34695493,4453.9,4453.8,2.26]
[1759592176426,14.54418851,4453.9,4453.8,2.26]
[1759592177261,14.54418851,4453.9,4453.8,2.261]
[1759592177468,0.6336,4452.4,4452.1,0.01]
[1759592177627,0.7456,4452.2,4452.1,0.01]
[1759592178026,0.112,4452.2,4452.1,0.4532]
[1759592178965,0.02807348,4452.6,4452.1,0.4532]
[1759592179134,2.42806907,4453.3,4452.2,0.4432]
[1759592180851,4.67363692,4453.3,4452.2,0.4432]
[1759592181022,2.4,4453.3,4452.2,0.4432]
[1759592181228,2.42806907,4453.3,4452.2,0.4432]
[1759592182168,2.42806907,4453.3,4452.3,2.24603013]
[1759592182465,2.42806907,4453.3,4452.4,0.4682]
[1759592183628,4.67360792,4453.3,4452.4,0.4682]
[1759592183895,4.64553885,4453.3,4452.1,2.9782]
[1759592184214,0.0280697,4453.2,4452.1,2.9782]
[1759592184368,2.27366666,4453.2,4452.1,3.0152]
[1759592184705,1.0989,4453.1,4452.1,0.01]
[1759592184882,0.6336,4452.7,4452.1,0.01]
[1759592185084,0.02807348,4452.6,4452.1,0.01]
[1759592185675,0.6336,4452.4,4452.1,0.01]
[1759592185871,0.49337537,4452.3,4452.1,0.01]
[1759592186384,0.02807537,4452.3,4452.1,0.01]
[1759592186605,1.0989,4452.2,4452.1,0.01]
[1759592186768,1.126976,4452.2,4452.1,0.01]
[1759592187305,0.661676,4452.2,4452.1,0.01]
[1759592188194,3.37305658,4452.2,4452.1,0.01]
[1759592188508,1.126976,4452.2,4452.1,0.01]
[1759592188699,0.661676,4452.2,4452.1,0.01]
[1759592189003,0.773676,4452.2,4452.1,0.01]
[1759592189607,5.86385658,4452.2,4452.1,0.01]
[1759592189809,5.83578058,4452.2,4452.1,0.01]
[1759592190304,8.82788058,4452.2,4452.1,0.01]
[1759592195289,8.82788058,4452.2,4452.1,0.011]
[1759592196709,8.38378058,4452.2,4452.1,0.011]
[1759592197117,5.049,4452.2,4452.1,0.011]
[1759592197279,5.049,4452.2,4452.1,0.4661]
[1759592197280,0.112,4452.2,4452.1,0.4661]
[1759592198417,0.02807096,4453.0,4452.1,0.4661]
[1759592198602,2.504,4453.6,4452.3,2.24598684]
[1759592198804,2.504,4453.6,4452.1,2.71222427]
[1759592198805,0.112,4452.8,4452.4,2.70105496]
[1759592199020,0.02806781,4453.5,4452.5,0.4551]
[1759592199319,0.02806781,4453.5,4452.6,2.24587881]
[1759592199629,2.539,4453.8,4452.7,0.4551]
[1759592199630,0.02806718,4453.6,4452.7,0.4551]
[1759592200218,0.02806718,4453.6,4452.8,2.24577793]
[1759592200620,0.02806781,4453.5,4452.9,0.4551]
[1759592200827,0.03006592,4453.8,4452.9,0.4551]
[1759592203140,0.03006592,4453.8,4452.9,2.70081347]
[1759592203432,0.03006592,4453.8,4453.0,0.4551]
[1759592206131,0.03006592,4453.8,4452.8,0.4551]
[1759592206738,0.03006592,4453.8,4452.8,2.9921]
[1759592207107,1.0777,4453.7,4451.1,16.91]
[1759592207330,0.02806718,4453.6,4452.2,2.9921]
[1759592207501,0.02806718,4453.6,4452.3,2.54633055]
[1759592207703,0.02806718,4453.6,4452.4,2.24597883]
[1759592208002,0.02806718,4453.6,4452.4,2.70107883]
[1759592208305,0.02806718,4453.6,4452.5,2.9921]
[1759592209042,0.112,4452.8,4452.5,2.9921]
[1759592209229,0.112,4452.8,4452.5,2.537]
[1759592209432,0.112,4452.8,4452.6,0.4551]
[1759592209948,0.112,4452.8,4452.5,2.537]
[1759592210253,0.112,4452.8,4452.5,4.78292224]
[1759592210450,0.112,4452.8,4452.6,2.24587672]
[1759592210654,0.112,4452.8,4452.7,2.24582837]
[1759592210953,0.112,4452.8,4452.7,0.457]
[1759592211167,0.002,4453.8,4453.2,2.24553358]
[1759592211317,0.002,4453.8,4453.3,2.537]
[1759592211318,0.112,4453.4,4453.3,2.537]
[1759592211518,0.112,4453.4,4453.3,2.994]
[1759592212329,0.112,4453.4,4452.7,0.65950285]
[1759592212655,0.112,4453.3,4452.9,2.24569107]
[1759592212846,0.112,4453.3,4452.8,2.994]
[1759592212847,0.112,4453.3,4453.0,0.457]
[1759592213043,0.112,4453.3,4453.1,2.536]
[1759592213352,0.112,4453.3,4453.2,2.993]
[1759592216142,0.112,4453.3,4453.2,2.536]
[1759592217078,0.112,4453.3,4453.2,2.993]
[1759592217282,0.112,4453.3,4453.2,0.457]
[1759592217450,0.002,4453.8,4453.3,2.24548539]
[1759592217645,0.112,4453.5,4453.4,2.24547536]
[1759592217847,0.112,4453.5,4453.4,2.70247536]
[1759592218277,0.002,4453.8,4453.5,2.24541415]
[1759592218574,0.002,4453.8,4453.6,2.536]
[1759592218775,0.002,4453.8,4453.6,2.993]
[1759592218995,0.002,4453.8,4453.7,2.70232411]
[1759592219155,0.002,4453.8,4453.7,0.457]
[1759592219356,0.002,4453.8,4453.7,2.93063424]
[1759592219868,0.002,4453.8,4453.6,0.112]
[1759592220054,0.002,4453.8,4452.8,2.24577446]
[1759592220055,0.452,4453.8,4452.8,2.24577446]
[1759592220380,0.452,4453.8,4452.9,0.959]
[1759592220568,0.002,4453.8,4452.9,0.959]
[1759592220753,0.002,4453.8,4452.9,0.36618747]
[1759592221081,0.002,4453.8,4453.0,2.536]
[1759592221082,0.452,4453.8,4453.0,2.536]
[1759592221283,0.47806655,4453.7,4453.1,2.536]
[1759592221444,0.47806655,4453.7,4453.2,2.536]
[1759592221651,0.02806655,4453.7,4453.2,2.536]
[1759592222046,0.45,4453.6,4453.2,2.536]
[1759592222446,0.45,4453.6,4452.7,0.457]
[1759592222647,0.45,4453.6,4452.8,2.536]
[1759592222848,0.02806781,4453.5,4452.8,2.536]
[1759592223086,0.45,4453.6,4452.7,0.27039628]
[1759592223250,0.02806781,4453.5,4452.5,0.001]
[1759592223581,2.24555312,4453.3,4452.5,0.001]
[1759592223783,0.0280697,4453.2,4452.5,0.001]
[1759592223961,0.4780697,4453.2,4452.5,0.001]
[1759592225084,0.002,4453.8,4452.5,0.2547]
[1759592225505,0.45,4453.7,4452.6,4.78187775]
[1759592225806,0.02806718,4453.6,4452.6,0.457]
[1759592226111,0.02806718,4453.6,4452.7,2.536]
[1759592226413,0.02806718,4453.6,4452.7,3.01429243]
[1759592226709,0.02806718,4453.6,4452.5,0.001]
[1759592227011,0.45,4453.5,4452.6,2.536]
[1759592227175,0.02806844,4453.4,4452.6,2.536]
[1759592227611,0.02806844,4453.4,4452.5,0.001]
[1759592227792,0.02806844,4453.4,4452.6,2.536]
[1759592228194,0.02806844,4453.4,4452.5,0.001]
[1759592228408,0.47806844,4453.4,4452.6,2.536]
[1759592228868,0.03006592,4453.8,4452.6,2.536]
[1759592229070,0.03006592,4453.8,4452.7,2.70282837]
[1759592229268,0.03006592,4453.8,4452.7,0.457]
[1759592229694,0.03006592,4453.8,4452.7,2.702802]
[1759592230017,0.112,4453.3,4452.7,0.569]
[1759592230225,0.112,4453.3,4452.7,0.112]
[1759592230387,0.112,4453.3,4452.8,2.536]
[1759592230595,0.02806655,4453.7,4452.5,0.001]
[1759592230596,0.45,4453.2,4452.5,0.001]
[1759592230809,0.45,4453.2,4452.5,2.537]
[1759592230810,0.112,4452.6,4452.5,2.537]
[1759592233609,0.45,4453.5,4452.5,2.537]
[1759592233775,0.112,4452.8,4452.5,2.537]
[1759592234391,0.112,4452.8,4452.5,0.001]
[1759592234802,0.002,4453.8,4452.5,0.001]
[1759592235003,0.002,4453.8,4452.8,2.24573379]
[1759592235208,0.002,4453.8,4452.6,0.457]
[1759592235443,0.45,4453.7,4452.5,0.001]
[1759592235739,0.02806718,4453.6,4452.6,2.536]
[1759592235941,0.02806718,4453.6,4452.5,0.001]
[1759592236109,0.45,4453.5,4452.5,0.001]
[1759592236308,0.02806844,4453.4,4452.6,2.536]
[1759592236623,0.47806844,4453.4,4452.6,2.536]
[1759592236932,0.47806844,4453.4,4452.5,0.001]
[1759592236933,2.24561197,4453.2,4452.5,0.001]
[1759592237089,0.02807033,4453.1,4452.5,0.001]
[1759592237295,0.47807033,4453.1,4452.5,0.001]
[1759592239315,0.6336,4453.0,4452.5,0.001]
[1759592239513,0.6336,4452.8,4452.5,0.001]
[1759592239741,0.02807285,4452.7,4452.5,0.001]
[1759592240389,0.6336,4452.9,4452.5,0.001]
[1759592240502,0.02807096,4453.0,4452.5,0.001]
[1759592240896,0.4454,4452.8,4452.5,0.001]
[1759592241142,0.02807285,4452.7,4452.5,0.001]
[1759592242139,0.47347096,4453.0,4452.5,0.001]
[1759592242638,2.8454,4452.9,4452.5,0.001]
[1759592242839,0.02807222,4452.8,4452.5,0.001]
[1759592243340,0.6336,4453.1,4452.5,0.001]
[1759592243533,0.4454,4452.8,4452.5,0.001]
[1759592243735,0.02807285,4452.7,4452.5,0.001]
[1759592244326,2.71918779,4453.0,4452.5,0.001]
[1759592244507,0.47347096,4453.0,4452.5,0.001]
[1759592244702,0.4454,4452.9,4452.5,0.001]
[1759592245035,0.112,4452.6,4452.5,0.001]
[1759592245738,0.5574,4452.6,4452.5,0.001]
[1759592246659,3.43687881,4452.6,4452.5,0.001]
[1759592246849,1.21907348,4452.6,4452.5,0.001]
[1759592247005,0.7456,4452.6,4452.5,0.001]
[1759592247200,1.191,4452.6,4452.5,0.001]
[1759592247614,1.21907348,4452.6,4452.5,0.001]
[1759592248064,3.46495229,4452.6,4452.5,0.001]
[1759592248435,1.21907348,4452.6,4452.5,0.001]
[1759592248636,1.191,4452.6,4452.5,0.001]
[1759592249737,1.21907348,4452.6,4452.5,0.001]
[1759592251064,3.46495229,4452.6,4452.5,0.001]
[1759592251260,1.21907348,4452.6,4452.5,0.001]
[1759592252642,1.191,4452.6,4452.5,0.001]
[1759592253378,0.112,4452.6,4452.5,0.001]
[1759592260901,0.5626,4452.6,4452.5,0.001]
[1759592261603,1.1962,4452.6,4452.5,0.001]
[1759592262005,1.22427348,4452.6,4452.5,0.001]
[1759592263293,4.936,4452.9,4452.5,0.001]
[1759592263294,0.02807222,4452.8,4452.5,0.001]
[1759592263485,0.4506,4452.6,4452.5,0.001]
[1759592263961,0.47867348,4452.6,4452.5,0.001]
[1759592264165,3.35815229,4452.6,4452.5,0.001]
[1759592264600,1.11227348,4452.6,4452.5,0.001]
[1759592264801,3.35815229,4452.6,4452.5,0.001]
[1759592265002,5.75815229,4452.6,4452.5,0.001]
[1759592265168,5.73007881,4452.6,4452.5,0.001]
[1759592267408,3.4842,4452.6,4452.5,0.001]
[1759592267701,5.75815229,4452.6,4452.5,0.001]
[1759592267881,3.4842,4452.6,4452.5,0.001]
[1759592268067,3.51227348,4452.6,4452.5,0.001]
[1759592268669,5.75815229,4452.6,4452.5,0.001]
[1759592268870,8.26707881,4452.6,4452.5,0.001]
[1759592269710,2.365,4451.9,4451.6,0.001]
[1759592269882,2.4,4451.5,4449.1,0.4759]
[1759592270213,0.6336,4451.6,4449.1,0.4759]
[1759592270214,5.28018519,4451.2,4449.1,0.4759]
[1759592270373,3.0336,4450.4,4449.1,0.4759]
[1759592270581,0.6336,4450.2,4449.1,0.4759]
[1759592270981,1.0766,4450.2,4449.1,0.4759]
[1759592271228,5.72369001,4450.2,4449.1,0.4759]
[1759592271630,5.72369001,4450.2,4449.1,0.01]
[1759592273388,5.83569001,4450.2,4449.1,0.01]
[1759592275686,1.12889879,4451.9,4449.1,0.01]
[1759592275890,2.52107853,4451.8,4450.1,0.4391]
[1759592276239,2.52107853,4451.8,4450.4,2.24694732]
[1759592276384,2.52107853,4451.8,4450.5,0.4291]
[1759592276587,2.493,4451.8,4451.2,2.2465804]
[1759592276944,0.02807474,4452.4,4450.1,0.01]
[1759592276945,0.02807474,4452.4,4451.4,2.24648425]
[1759592277229,0.02807474,4452.4,4451.5,2.94307468]
[1759592277436,2.57507159,4452.9,4451.8,2.24625262]
[1759592277799,2.4,4452.8,4451.9,0.4291]
[1759592278040,0.02807285,4452.7,4451.9,0.4291]
[1759592278625,0.02807285,4452.7,4451.9,2.67530431]
[1759592279120,0.02807222,4452.8,4452.0,0.4291]
[1759592279320,2.42807222,4452.8,4452.0,0.4291]
[1759592282242,2.42807222,4452.8,4451.6,0.4291]
[1759592282591,2.42807222,4452.8,4451.6,2.6754803]
[1759592282818,2.42807222,4452.8,4451.7,0.26754803]
[1759592284531,2.42807222,4452.8,4451.1,2.24659502]
[1759592284532,0.6336,4452.5,4450.9,0.4291]
[1759592284692,2.24603911,4452.3,4450.9,0.4291]
[1759592284999,0.028076,4452.2,4450.9,2.67581754]
[1759592285187,0.6336,4451.1,4450.1,0.0854]
[1759592285389,2.88094251,4449.7,4449.6,0.001]
[1759592285689,2.88114455,4449.3,4449.2,0.001]
[1759592285922,5.28119507,4449.2,4449.1,0.01]
[1759592286101,1.0766,4449.2,4447.9,0.001]
[1759592286303,18.02524655,4448.7,4447.9,0.001]
[1759592286505,20.56224655,4448.7,4447.9,0.001]
[1759592286821,21.00524655,4448.7,4447.9,0.001]
[1759592287629,8.37344768,4448.7,4447.9,0.001]
[1759592292129,5.83644768,4448.7,4447.9,0.001]
[1759592292345,8.37444768,4448.7,4447.9,0.001]
[1759592292792,8.46445171,4448.7,4447.9,0.001]
[1759592298020,8.35245171,4448.7,4447.9,0.001]
[1759592302571,3.12360403,4448.7,4447.9,0.001]
[1759592302867,2.539,4448.7,4448.6,0.4375]
[1759592303074,4.78684768,4448.7,4448.6,0.001]
[1759592303274,4.939,4448.7,4448.6,0.001]
[1759592303563,4.939,4448.7,4448.6,0.4375]
[1759592303941,3.1726,4448.7,4448.6,0.4375]
[1759592304341,3.20069809,4448.7,4448.6,0.4375]
[1759592304687,5.60069809,4448.7,4448.6,0.4375]
[1759592304848,4.939,4448.7,4448.6,0.4375]
[1759592306067,5.5726,4448.7,4448.6,0.4375]
[1759592307552,7.82044768,4448.7,4448.6,0.001]
[1759592307772,8.26074768,4448.7,4448.6,0.001]
[1759592308184,8.37274768,4448.7,4448.6,0.001]
[1759592308785,5.6846,4448.7,4448.6,0.001]
[1759592309173,7.93244768,4448.7,4448.6,0.001]
[1759592310089,5.6846,4448.7,4448.6,0.001]
[1759592310591,5.6846,4448.7,4448.6,0.4467]
[1759592311086,7.93244768,4448.7,4448.6,0.001]
[1759592312593,5.6846,4448.7,4448.6,0.001]
[1759592312996,5.6846,4448.7,4448.6,0.4467]
[1759592315210,6.16116689,4448.7,4448.6,0.4467]
[1759592315515,6.16116689,4448.7,4448.6,0.001]
[1759592317263,6.16116689,4448.7,4448.6,0.4467]
[1759592317507,6.16116689,4448.7,4448.6,0.001]
[1759592317966,2.512,4448.7,4448.6,0.4467]
[1759592318321,3.17369809,4448.7,4448.6,0.001]
[1759592318472,5.89795522,4448.7,4448.6,0.001]
[1759592318821,6.33575713,4448.7,4448.6,0.001]
[1759592319004,6.22375713,4448.7,4448.6,0.001]
[1759592319184,5.75785713,4448.7,4448.6,0.001]
[1759592319766,3.51000945,4448.7,4448.6,0.001]
[1759592319965,5.78595522,4448.7,4448.6,0.001]
[1759592320167,5.75785713,4448.7,4448.6,0.001]
[1759592321211,3.51000945,4448.7,4448.6,0.001]
[1759592321365,3.53810754,4448.7,4448.6,0.001]
[1759592322110,5.78595522,4448.7,4448.6,0.001]
[1759592322314,5.75785713,4448.7,4448.6,0.001]
[1759592322612,3.51000945,4448.7,4448.6,0.001]
[1759592322795,3.53810754,4448.7,4448.6,0.001]
[1759592323438,5.78595522,4448.7,4448.6,0.001]
[1759592323751,6.22375713,4448.7,4448.6,0.001]
[1759592325046,5.75785713,4448.7,4448.6,0.001]
[1759592326042,3.51000945,4448.7,4448.6,0.001]
[1759592326243,3.53810754,4448.7,4448.6,0.001]
[1759592327007,2.90450754,4448.7,4448.6,0.001]
[1759592327248,2.90450754,4448.7,4448.6,0.4467]
[1759592327249,2.42809809,4448.7,4448.6,0.4467]
[1759592327540,2.42809809,4448.7,4448.6,0.001]
[1759592329250,2.54009809,4448.7,4448.6,0.001]
[1759592329950,2.54009809,4448.7,4448.6,0.4467]
[1759592330126,0.112,4448.7,4448.6,0.4467]
[1759592330328,0.112,4448.7,4448.6,2.69459821]
[1759592330530,0.02809367,4449.4,4448.6,0.4467]
[1759592330752,0.112,4448.9,4448.6,0.4467]
[1759592331153,0.112,4448.9,4448.7,0.4638]
[1759592332067,0.112,4448.9,4448.8,0.4638]
[1759592334184,0.002,4449.7,4448.8,0.4638]
[1759592334390,0.112,4449.3,4449.0,2.24766169]
[1759592334545,0.112,4449.3,4449.1,2.24763372]
[1759592334746,0.002,4449.7,4449.2,0.4638]
[1759592335048,0.112,4449.6,4449.2,0.4638]
[1759592335368,0.112,4449.6,4449.2,2.24758422]
[1759592335543,0.112,4449.6,4449.3,2.71132996]
[1759592335750,0.112,4449.6,4449.3,0.4638]
[1759592335965,0.112,4449.6,4449.4,2.24749404]
[1759592336184,0.112,4449.6,4449.5,0.4638]
[1759592336683,0.002,4449.7,4449.5,0.4638]
[1759592336983,0.002,4449.7,4449.6,0.4638]
[1759592337283,0.002,4449.7,4449.6,2.71119302]
[1759592337581,0.002,4449.7,4449.6,0.4638]
[1759592340173,0.002,4449.7,4449.6,2.71119302]
[1759592340867,0.002,4449.7,4449.6,5.24919302]
[1759592341909,0.002,4449.7,4449.1,14.5]
[1759592342118,0.002,4449.7,4448.8,2.24779715]
[1759592342406,0.002,4449.7,4448.7,2.7116223]
[1759592342624,0.002,4449.7,4448.7,0.4638]
[1759592342801,0.002,4449.7,4448.8,2.538]
[1759592343167,0.002,4449.7,4448.8,4.78578783]
[1759592343609,0.002,4449.7,4448.7,0.4638]
[1759592343779,0.002,4449.7,4448.8,2.538]
[1759592343975,0.4616,4449.7,4448.8,2.538]
[1759592344192,0.02809241,4449.6,4448.8,2.538]
[1759592344608,0.002,4449.7,4448.8,3.0018]
[1759592344908,0.002,4449.7,4448.9,2.24770625]
[1759592345074,0.002,4449.7,4449.0,2.24768306]
[1759592345673,0.002,4449.7,4449.1,0.4638]
[1759592346216,0.002,4449.7,4449.1,2.71144043]
[1759592346584,0.112,4449.5,4449.0,4.78568407]
[1759592346998,0.112,4449.5,4449.1,2.538]
[1759592347379,0.112,4449.5,4449.1,3.0018]
[1759592347780,0.112,4449.5,4449.1,3.0008]
[1759592348382,0.112,4449.5,4449.2,2.71139178]
[1759592348610,0.112,4449.5,4449.2,0.4638]
[1759592349420,0.112,4449.5,4449.1,2.24763162]
[1759592349421,0.002,4449.7,4449.1,2.537]
[1759592349727,0.114,4449.7,4449.3,2.7113176]
[1759592350016,0.114,4449.7,4449.4,2.24748471]
[1759592350179,0.114,4449.7,4449.5,0.4638]
[1759592350521,0.002,4449.7,4449.5,0.4638]
[1759592350698,0.002,4449.7,4449.3,2.24754131]
[1759592350902,0.002,4449.7,4449.6,0.4638]
[1759592351074,0.002,4449.7,4449.6,5.24819302]
[1759592351718,0.002,4449.7,4449.6,3.0008]
[1759592352020,0.002,4449.7,4449.6,2.537]
[1759592352583,0.002,4449.7,4449.4,0.112]
[1759592352774,0.002,4449.7,4449.5,2.537]
[1759592353450,0.002,4449.7,4449.5,4.78443334]
[1759592353649,0.002,4449.7,4449.6,2.537]
[1759592354653,0.002,4449.7,4449.5,2.247443]
[1759592354958,0.002,4449.7,4449.4,0.112]
[1759592355117,0.002,4449.7,4449.5,2.537]
[1759592356662,0.002,4449.7,4449.4,0.112]
[1759592356861,0.002,4449.7,4448.9,0.112]
[1759592357045,0.112,4449.5,4449.1,0.001]
[1759592357229,0.4596,4449.4,4449.1,0.001]
[1759592357475,0.4596,4449.4,4449.1,2.538]
[1759592357639,0.4876943,4449.3,4449.1,0.001]
[1759592357835,0.112,4449.2,4449.1,0.001]
[1759592358032,0.5716,4449.2,4449.1,0.001]
[1759592358437,0.112,4449.2,4449.1,0.001]
[1759592358858,0.5716,4449.2,4449.1,0.001]
[1759592361762,0.112,4449.2,4449.1,0.001]
[1759592362063,0.4693,4449.2,4449.1,0.001]
[1759592368330,5.75049507,4449.2,4449.1,0.001]
[1759592368731,8.28749507,4449.2,4449.1,0.001]
[1759592369835,8.76442483,4449.2,4449.1,0.001]
[1759592370940,9.20463972,4449.2,4449.1,0.001]
[1759592372078,9.31663972,4449.2,4449.1,0.001]
[1759592372875,9.20463972,4449.2,4449.1,0.001]
[1759592374863,9.20663972,4449.2,4449.1,0.001]
[1759592378417,8.72970996,4449.2,4449.1,0.001]
[1759592379361,5.86040996,4449.2,4449.1,0.001]
[1759592379841,5.22680996,4449.2,4449.1,0.001]
[1759592380049,8.26040996,4449.2,4449.1,0.001]
[1759592380220,8.71620996,4449.2,4449.1,0.001]
[1759592381817,8.26040996,4449.2,4449.1,0.001]
[1759592382921,8.82820996,4449.2,4449.1,0.001]
[1759592383749,8.37240996,4449.2,4449.1,0.001]
[1759592384369,3.2846,4449.2,4449.1,0.001]
[1759592384655,2.651,4449.2,4449.1,0.47]
[1759592384857,2.651,4449.2,4449.1,0.001]
[1759592385059,5.71269493,4449.2,4449.1,0.001]
[1759592385274,5.6846,4449.2,4449.1,0.001]
[1759592385968,7.93219507,4449.2,4449.1,0.001]
[1759592386133,5.6846,4449.2,4449.1,0.001]
[1759592386333,5.051,4449.2,4449.1,0.001]
[1759592386657,0.002,4449.2,4449.1,0.47]
[1759592387819,0.002,4449.2,4449.1,0.001]
[1759592388026,0.002,4449.2,4449.1,0.47]
[1759592394555,0.002,4449.2,4449.1,2.71764559]
[1759592395471,0.002,4449.7,4449.6,2.24739302]
[1759592395639,0.002,4449.7,4449.6,4.78439302]
[1759592395831,0.002,4449.7,4449.6,5.21779302]
[1759592396668,0.002,4449.7,4449.6,5.32979302]
[1759592400470,0.002,4450.1,4450.0,2.24719101]
[1759592400769,0.002,4450.6,4450.5,2.24693854]
[1759592400937,0.002,4450.6,4450.5,4.89593854]
[1759592401138,0.002,4450.6,4450.5,5.32933854]
[1759592403178,0.002,4450.6,4450.5,0.112]
[1759592403351,0.002,4450.6,4450.5,2.537]
[1759592403556,0.002,4450.6,4450.5,5.21733854]
[1759592404862,0.002,4450.6,4450.5,2.68033854]
[1759592405169,0.002,4450.6,4450.5,5.21733854]
[1759592405353,0.002,4450.6,4450.5,2.24693854]
[1759592405547,0.002,4450.6,4450.5,5.32933854]
[1759592406002,0.002,4450.6,4450.5,2.79233854]
[1759592406570,0.002,4450.6,4450.5,5.32933854]
[1759592406990,0.002,4450.6,4450.5,2.79233854]
[1759592407171,0.002,4450.6,4450.5,0.112]
[1759592407477,0.002,4450.6,4450.5,5.32833854]
[1759592407694,0.002,4450.6,4450.5,7.72833854]
[1759592408578,0.112,4451.8,4450.8,2.24678709]
[1759592408809,0.112,4451.8,4451.7,2.24633286]
[1759592408947,0.4389,4452.5,4451.7,2.536]
[1759592409146,0.36692632,4452.8,4451.8,2.3582824]
[1759592409147,0.112,4452.6,4451.8,2.3582824]
[1759592409354,0.112,4452.6,4451.8,2.7916824]
[1759592410204,0.112,4452.6,4451.8,2.3582824]
[1759592411225,0.112,4452.6,4451.8,2.7916824]
[1759592411381,0.112,4452.6,4451.8,5.3276824]
[1759592412086,0.4489,4451.9,4450.9,2.24672764]
[1759592412391,0.4489,4451.9,4451.2,2.24658519]
[1759592412599,0.4489,4451.9,4451.4,2.4]
[1759592412794,0.01,4451.9,4451.5,2.536]
[1759592412997,0.4389,4451.8,4451.5,2.536]
[1759592413280,0.4389,4451.8,4450.8,0.8723]
[1759592413281,0.4389,4451.7,4450.6,2.4]
[1759592413483,0.4389,4451.7,4450.8,2.4]
[1759592413681,0.01,4451.9,4451.0,2.4]
[1759592414025,0.01,4451.9,4451.8,2.2462824]
[1759592414194,0.01,4451.9,4451.8,4.7822824]
[1759592414918,0.01,4451.9,4451.8,2.2462824]
[1759592415133,0.01,4451.9,4451.8,4.7822824]
[1759592415286,0.01,4451.9,4451.8,5.2156824]
[1759592415741,0.01,4451.9,4451.8,2.2462824]
[1759592416033,0.01,4451.9,4451.8,4.7822824]
[1759592416789,0.01,4451.9,4451.8,5.2156824]
[1759592417830,0.01,4451.9,4451.8,7.6156824]
[1759592419248,0.36692632,4452.8,4452.7,2.24582837]
[1759592419449,0.36692632,4452.8,4452.7,4.78082837]
[1759592419793,0.002,4452.8,4452.7,4.78082837]
[1759592420735,0.002,4452.8,4452.7,5.23162837]
[1759592421620,0.002,4452.8,4452.7,7.63162837]
[1759592422131,0.002,4452.8,4452.7,7.74362837]
[1759592422498,0.002,4452.8,4452.7,22.24362837]
[1759592422900,0.002,4452.8,4452.7,22.33348562]
[1759592426052,0.002,4452.8,4452.7,35.80546762]
[1759592426254,0.002,4452.8,4452.7,31.69163262]
[1759592426612,0.002,4452.8,4452.7,32.14214564]
[1759592426844,1e-08,4452.9,4452.8,4.64577793]
[1759592427027,0.002,4453.3,4453.2,2.24557621]
[1759592427238,0.002,4453.3,4453.2,7.18057621]
[1759592427446,0.002,4453.3,4453.2,21.62009121]
[1759592427756,0.002,4453.3,4453.2,24.86190121]
[1759592427916,0.002,4453.3,4453.2,24.95174857]
[1759592428346,0.002,4453.3,4453.2,38.67358157]
[1759592428515,0.002,4453.3,4453.2,37.51249757]
[1759592429318,0.002,4453.3,4453.2,22.33322357]
[1759592429523,0.002,4453.3,4453.2,38.98163157]
[1759592430432,0.002,4453.3,4453.2,37.59395957]
[1759592430628,0.002,4453.3,4453.2,36.56762557]
[1759592431442,0.002,4453.3,4453.2,37.90175957]
[1759592432335,0.002,4453.8,4453.6,2.24537452]
[1759592432536,0.002,4453.8,4453.6,27.18259152]
[1759592432738,0.002,4453.8,4453.6,28.77448652]
[1759592432936,0.002,4453.8,4453.6,39.40001552]
[1759592433141,0.002,4453.8,4453.6,27.74953657]
[1759592433661,0.002,4454.3,4454.2,2.24507206]
[1759592433831,0.002,4454.3,4454.2,9.42867906]
[1759592434026,0.002,4454.3,4454.2,10.54911506]
[1759592434358,0.002,4454.3,4454.2,25.04911506]
[1759592435149,0.002,4454.3,4454.2,40.14335206]
[1759592435346,0.002,4454.6,4454.5,2.24492086]
[1759592435552,0.002,4454.6,4454.5,12.85683086]
[1759592435853,0.002,4454.6,4454.5,25.97149286]
[1759592436068,0.002,4454.6,4454.5,26.74406186]
[1759592436267,0.002,4454.6,4454.5,27.27305086]